bitfinex/quotes_BTCUSD_20250403
["timestamp","ask_amount","ask_price","bid_price","bid_amount"]
[1743722399338,0.254233,82602.0,82598.0,0.0467]
[1743722399545,0.242133,82599.0,82598.0,0.0467]
[1743722399799,0.242124,82603.0,82598.0,0.0467]
[1743722399975,0.242125,82602.0,82598.0,0.0467]
[1743722400175,0.242133,82599.0,82598.0,0.0467]
[1743722400379,0.254239,82599.0,82598.0,0.0467]
[1743722400916,0.242144,82596.0,82594.0,0.0009946]
[1743722401123,0.242145,82595.0,82594.0,0.0009946]
[1743722401271,0.254239,82599.0,82594.0,0.0009946]
[1743722401272,0.242133,82599.0,82595.0,0.242142]
[1743722401470,0.242133,82599.0,82595.0,0.247079]
[1743722401677,0.242138,82598.0,82594.0,0.2431416]
[1743722401872,0.242138,82598.0,82595.0,0.242145]
[1743722402117,0.242134,82599.0,82596.0,0.242142]
[1743722402321,0.242134,82599.0,82594.0,0.0009946]
[1743722402322,0.242139,82597.0,82594.0,0.0009946]
[1743722402479,0.254252,82595.0,82594.0,0.0009946]
[1743722403080,0.254261,82592.0,82591.0,0.004]
[1743722404667,0.594261,82592.0,82591.0,0.004]
[1743722404866,0.704538,82592.0,82591.0,0.004]
[1743722405272,0.82744097,82592.0,82591.0,0.004]
[1743722406875,0.87724097,82592.0,82591.0,0.004]
[1743722407467,0.71916397,82592.0,82591.0,0.004]
[1743722408294,0.71816397,82592.0,82591.0,0.004]
[1743722408506,0.72116397,82592.0,82591.0,0.004]
[1743722408693,0.72016397,82592.0,82591.0,0.004]
[1743722408891,0.722554,82592.0,82591.0,0.004]
[1743722409094,0.726554,82592.0,82591.0,0.004]
[1743722409573,0.738661,82592.0,82591.0,0.004]
[1743722409825,0.734661,82592.0,82591.0,0.004]
[1743722410131,0.85955868,82592.0,82591.0,0.004]
[1743722410474,0.733661,82592.0,82591.0,0.004]
[1743722411059,0.596261,82592.0,82591.0,0.004]
[1743722411271,0.594261,82592.0,82591.0,0.004]
[1743722411566,0.596261,82592.0,82591.0,0.004]
[1743722411803,0.342,82592.0,82591.0,0.004]
[1743722411931,0.344,82592.0,82591.0,0.01087351]
[1743722412133,0.598261,82592.0,82591.0,0.01087351]
[1743722412342,0.596261,82592.0,82591.0,0.01087351]
[1743722412543,0.7081475,82592.0,82591.0,0.01087351]
[1743722412761,0.7111475,82592.0,82591.0,0.004]
[1743722413124,0.7081475,82592.0,82591.0,0.004]
[1743722413330,0.71916397,82592.0,82591.0,0.004]
[1743722413551,0.71816397,82592.0,82591.0,0.004]
[1743722414573,0.71916397,82592.0,82591.0,0.004]
[1743722414774,0.71816397,82592.0,82591.0,0.004]
[1743722415110,0.72016397,82592.0,82591.0,0.004]
[1743722415259,0.84406165,82592.0,82591.0,0.004]
[1743722415695,0.84306165,82592.0,82591.0,0.004]
[1743722416183,0.84706165,82592.0,82591.0,0.004]
[1743722418106,0.8616025,82592.0,82591.0,0.004]
[1743722418311,0.012111,82565.0,82564.0,0.0492]
[1743722418507,0.254354,82562.0,82561.0,0.004]
[1743722419895,0.254354,82562.0,82561.0,0.00446097]
[1743722421291,0.242239,82563.0,82561.0,0.00446097]
[1743722421589,0.012111,82568.0,82562.0,0.242242]
[1743722421793,0.30511587,82571.0,82563.0,0.012111]
[1743722422132,0.34,82572.0,82567.0,0.0472]
[1743722422291,0.34,82572.0,82569.0,0.242221]
[1743722422489,0.34,82572.0,82571.0,0.242215]
[1743722422696,0.34,82572.0,82571.0,0.254325]
[1743722423253,0.01211,82570.0,82567.0,0.0472]
[1743722423511,0.34,82573.0,82568.0,0.012111]
[1743722424041,0.34,82573.0,82572.0,0.254322]
[1743722424322,0.1382,82574.0,82572.0,0.254322]
[1743722424323,0.1382,82574.0,82573.0,0.254319]
[1743722424682,0.15031,82574.0,82573.0,0.00719997]
[1743722424898,0.4341892,82574.0,82573.0,0.00719997]
[1743722425091,0.242218,82570.0,82566.0,0.24223]
[1743722425296,0.242218,82570.0,82567.0,0.289426]
[1743722425512,0.242215,82572.0,82568.0,0.24943121]
[1743722425797,0.242215,82572.0,82569.0,0.24222]
[1743722425995,0.242215,82572.0,82570.0,0.00720491]
[1743722426393,0.242215,82571.0,82570.0,0.00720491]
[1743722426598,0.242215,82572.0,82568.0,0.012111]
[1743722426813,0.1382,82574.0,82573.0,0.254319]
[1743722427012,0.34,82577.0,82576.0,0.01211]
[1743722427198,0.34,82577.0,82576.0,0.00719502]
[1743722427401,0.582198,82577.0,82576.0,0.00719502]
[1743722427825,0.34,82577.0,82576.0,0.26150602]
[1743722428239,0.13832,82578.0,82577.0,0.254307]
[1743722428396,0.13832,82578.0,82577.0,0.30980038]
[1743722428620,0.13832,82578.0,82577.0,0.29769138]
[1743722428817,1.0906,82584.0,82583.0,0.254289]
[1743722429018,1.0906,82584.0,82583.0,0.26147249]
[1743722429283,1.4306,82584.0,82583.0,0.26147249]
[1743722430178,1.0906,82584.0,82583.0,0.30867249]
[1743722430694,0.012105,82604.0,82597.0,0.012106]
[1743722430901,0.012107,82596.0,82588.0,0.012108]
[1743722431128,0.242142,82596.0,82593.0,0.24215]
[1743722431629,0.242142,82596.0,82594.0,0.01467304]
[1743722431822,0.242139,82597.0,82592.0,0.012107]
[1743722432118,0.582127,82601.0,82596.0,0.012107]
[1743722432333,0.582127,82601.0,82597.0,0.242139]
[1743722432538,0.34,82601.0,82600.0,0.24213]
[1743722432739,0.01664617,82605.0,82604.0,0.254224]
[1743722433090,0.34,82606.0,82604.0,0.26870423]
[1743722433324,0.34,82606.0,82605.0,0.242116]
[1743722433743,0.34,82606.0,82605.0,0.25659449]
[1743722434331,0.34,82606.0,82605.0,0.01447849]
[1743722434732,0.341,82606.0,82605.0,0.01447849]
[1743722435271,0.341,82606.0,82605.0,0.25659449]
[1743722435942,0.342,82606.0,82605.0,0.25659449]
[1743722436337,0.01815247,82606.0,82605.0,0.26869949]
[1743722436768,0.002,82606.0,82605.0,0.26869949]
[1743722437366,1.0906,82607.0,82606.0,0.254218]
[1743722437594,1.0906,82607.0,82606.0,0.26863874]
[1743722442000,1.21349768,82607.0,82606.0,0.06202074]
[1743722442243,1.0906,82607.0,82606.0,0.06202074]
[1743722442521,0.012105,82606.0,82604.0,0.0009832]
[1743722442828,0.254221,82605.0,82604.0,0.0009832]
[1743722443019,0.242145,82595.0,82593.0,0.0456]
[1743722443360,0.242116,82606.0,82602.0,0.242123]
[1743722443518,0.242121,82603.0,82602.0,0.0049753]
[1743722443725,0.012105,82605.0,82597.0,0.242136]
[1743722443927,0.242127,82602.0,82596.0,0.254249]
[1743722444134,0.242127,82602.0,82599.0,0.242131]
[1743722444328,0.242124,82604.0,82599.0,0.242131]
[1743722444552,0.242125,82602.0,82598.0,0.242134]
[1743722444903,0.242125,82602.0,82599.0,0.242132]
[1743722445108,0.242125,82602.0,82599.0,0.242133]
[1743722445288,0.242124,82602.0,82598.0,0.242134]
[1743722445463,0.242129,82601.0,82598.0,0.242134]
[1743722445693,0.242124,82602.0,82599.0,0.242133]
[1743722445985,0.242128,82601.0,82598.0,0.242134]
[1743722446387,0.242128,82601.0,82596.0,0.254246]
[1743722446388,0.242131,82600.0,82596.0,0.254246]
[1743722446587,0.242131,82600.0,82571.0,0.36009189]
[1743722446588,0.24214,82597.0,82593.0,0.299857]
[1743722446749,0.24214,82597.0,82594.0,0.242147]
[1743722446951,0.24213,82600.0,82594.0,0.012107]
[1743722447169,0.012106,82601.0,82593.0,0.28775]
[1743722447373,0.242137,82598.0,82595.0,0.242144]
[1743722447573,0.254244,82599.0,82593.0,0.057707]
[1743722447574,0.242109,82608.0,82601.0,0.012106]
[1743722447774,0.242089,82616.0,82610.0,0.012105]
[1743722447951,1.09028,82618.0,82610.0,0.012105]
[1743722448150,1.09028,82618.0,82611.0,0.2542]
[1743722448355,0.242107,82609.0,82606.0,0.242112]
[1743722448577,0.242104,82609.0,82605.0,0.242116]
[1743722448790,0.242116,82605.0,82604.0,0.0009996]
[1743722450471,0.254221,82605.0,82604.0,0.0009996]
[1743722451487,0.255221,82605.0,82604.0,0.0009996]
[1743722452129,0.256221,82605.0,82604.0,0.0009996]
[1743722453665,0.256221,82605.0,82604.0,0.01525334]
[1743722453884,0.256221,82605.0,82604.0,0.0009996]
[1743722454091,0.256221,82605.0,82604.0,0.01525334]
[1743722454361,0.256221,82605.0,82604.0,0.0009996]
[1743722454561,0.256221,82605.0,82604.0,0.01525334]
[1743722454767,0.256221,82605.0,82604.0,0.0009996]
[1743722455875,0.256221,82605.0,82604.0,0.01525334]
[1743722456078,0.256221,82605.0,82604.0,0.0009996]
[1743722456239,0.256221,82605.0,82604.0,0.01525334]
[1743722456657,0.256221,82605.0,82604.0,0.0009996]
[1743722457006,0.256221,82605.0,82604.0,0.01525334]
[1743722457197,0.256221,82605.0,82604.0,0.0009996]
[1743722457539,0.256221,82605.0,82604.0,0.01525334]
[1743722457737,0.23778973,82606.0,82604.0,0.01525334]
[1743722457941,0.242116,82605.0,82604.0,0.01525334]
[1743722458821,0.254221,82605.0,82604.0,0.01525334]
[1743722459988,0.254221,82605.0,82604.0,0.0009996]
[1743722460190,0.254221,82605.0,82604.0,0.01525334]
[1743722461210,0.36135527,82605.0,82604.0,0.0009996]
[1743722461551,0.36135527,82605.0,82592.0,0.00046097]
[1743722461552,0.254258,82593.0,82592.0,0.00046097]
[1743722461754,0.301958,82593.0,82592.0,0.00046097]
[1743722461891,0.42486097,82593.0,82592.0,0.00046097]
[1743722462295,0.88775865,82593.0,82592.0,0.00046097]
[1743722462498,0.9022995,82593.0,82592.0,0.00046097]
[1743722464101,0.9052995,82593.0,82592.0,0.00046097]
[1743722464274,0.9092995,82593.0,82592.0,0.00046097]
[1743722468611,0.78640182,82593.0,82592.0,0.00046097]
[1743722469326,0.92400182,82593.0,82592.0,0.00046097]
[1743722470541,1.33280182,82593.0,82592.0,0.00046097]
[1743722470699,1.34080182,82593.0,82592.0,0.00046097]
[1743722471412,1.33680182,82593.0,82592.0,0.00046097]
[1743722471583,1.4596995,82593.0,82592.0,0.00046097]
[1743722471783,1.4646995,82593.0,82592.0,0.00046097]
[1743722472392,1.4606995,82593.0,82592.0,0.00046097]
[1743722472593,1.4656995,82593.0,82592.0,0.00046097]
[1743722473195,1.4706995,82593.0,82592.0,0.00046097]
[1743722473549,1.4656995,82593.0,82592.0,0.00046097]
[1743722473915,1.4706995,82593.0,82592.0,0.00046097]
[1743722475281,2.1706995,82593.0,82592.0,0.00046097]
[1743722475843,3.2612195,82593.0,82592.0,0.00046097]
[1743722477994,3.13832182,82593.0,82592.0,0.00046097]
[1743722479013,3.14332182,82593.0,82592.0,9.7e-07]
[1743722480024,3.13832182,82593.0,82592.0,9.7e-07]
[1743722480182,3.12832182,82593.0,82592.0,9.7e-07]
[1743722480364,3.13832182,82593.0,82592.0,9.7e-07]
[1743722480566,3.2612195,82593.0,82592.0,9.7e-07]
[1743722482808,3.1236195,82593.0,82592.0,9.7e-07]
[1743722483018,3.2610595,82593.0,82592.0,9.7e-07]
[1743722484175,3.13316182,82593.0,82592.0,9.7e-07]
[1743722484566,2.94802182,82593.0,82592.0,9.7e-07]
[1743722484767,3.07100097,82593.0,82592.0,9.7e-07]
[1743722484919,3.08554182,82593.0,82592.0,9.7e-07]
[1743722485275,3.07100097,82593.0,82592.0,9.7e-07]
[1743722485461,2.37100097,82593.0,82592.0,9.7e-07]
[1743722485590,2.23348097,82593.0,82592.0,9.7e-07]
[1743722485790,2.38550182,82593.0,82592.0,9.7e-07]
[1743722486126,2.37550182,82593.0,82592.0,9.7e-07]
[1743722486500,2.38450182,82593.0,82592.0,9.7e-07]
[1743722486682,0.594292,82582.0,82581.0,0.04774912]
[1743722487012,0.594292,82582.0,82581.0,0.04788756]
[1743722487542,0.582183,82582.0,82581.0,0.06265279]
[1743722487743,0.594292,82582.0,82581.0,0.06265279]
[1743722487943,0.341,82582.0,82581.0,0.06265279]
[1743722488199,0.341,82582.0,82581.0,0.11155279]
[1743722489203,0.342,82582.0,82581.0,0.11155279]
[1743722490572,0.584183,82582.0,82581.0,0.11155279]
[1743722492982,0.002,82582.0,82581.0,0.36584779]
[1743722493328,1.09052,82593.0,82592.0,0.254261]
[1743722493502,0.34,82605.0,82602.0,0.0489]
[1743722493674,0.242119,82604.0,82603.0,0.0146151]
[1743722493873,0.242119,82604.0,82602.0,0.0489]
[1743722493874,0.242121,82603.0,82602.0,0.0489]
[1743722494339,0.34,82605.0,82602.0,0.0489]
[1743722494581,0.24211,82607.0,82604.0,0.0488]
[1743722494758,0.34,82605.0,82604.0,0.0488]
[1743722494958,0.582116,82605.0,82604.0,0.0488]
[1743722495163,0.34,82605.0,82604.0,0.06329646]
[1743722495785,0.24211,82607.0,82604.0,0.06329646]
[1743722495990,0.34,82609.0,82606.0,0.242113]
[1743722496326,0.34,82609.0,82607.0,0.01449124]
[1743722496501,0.582107,82608.0,82607.0,0.01449124]
[1743722496726,0.24211,82607.0,82604.0,0.0488]
[1743722496928,0.001,82605.0,82604.0,0.0488]
[1743722497046,0.242116,82605.0,82604.0,0.0488]
[1743722497244,0.242116,82605.0,82604.0,0.04893844]
[1743722499494,0.243116,82605.0,82604.0,0.04893844]
[1743722499790,0.244116,82605.0,82604.0,0.04893844]
[1743722502470,0.002,82605.0,82604.0,0.30316244]
[1743722503043,0.002,82605.0,82604.0,0.34836244]
[1743722503245,0.001,82605.0,82604.0,0.34836244]
[1743722503462,0.242105,82609.0,82604.0,0.34836244]
[1743722503766,0.242102,82610.0,82606.0,0.012105]
[1743722504468,0.242102,82610.0,82604.0,0.10624344]
[1743722504671,0.242106,82609.0,82605.0,0.242115]
[1743722504929,0.242109,82608.0,82605.0,0.242115]
[1743722505095,0.242106,82609.0,82605.0,0.242115]
[1743722505304,0.242104,82609.0,82605.0,0.242115]
[1743722506362,0.242104,82609.0,82606.0,0.001]
[1743722506701,0.24211,82607.0,82604.0,0.09513844]
[1743722506901,0.24211,82607.0,82604.0,0.33625644]
[1743722507061,0.24211,82607.0,82605.0,0.002]
[1743722507262,0.254218,82606.0,82605.0,0.001]
[1743722507692,0.254221,82605.0,82604.0,0.00013844]
[1743722508090,0.254221,82605.0,82604.0,0.00113844]
[1743722509126,0.254221,82605.0,82604.0,0.01542694]
[1743722509456,0.254221,82605.0,82604.0,0.01444027]
[1743722510038,0.254221,82605.0,82604.0,0.01544027]
[1743722510639,0.254221,82605.0,82604.0,0.01644027]
[1743722510837,0.254221,82605.0,82604.0,0.00213844]
[1743722511041,0.242116,82605.0,82604.0,0.00213844]
[1743722511245,0.242116,82605.0,82604.0,0.01643181]
[1743722511561,0.242114,82606.0,82604.0,0.01643181]
[1743722512086,0.01578222,82613.0,82608.0,0.242104]
[1743722512217,0.242095,82612.0,82609.0,0.11038467]
[1743722512415,0.242099,82611.0,82609.0,0.11038467]
[1743722512846,0.242095,82612.0,82609.0,0.35248767]
[1743722513050,0.242098,82611.0,82609.0,0.11038467]
[1743722513467,0.242101,82610.0,82609.0,0.11038467]
[1743722516713,0.242099,82611.0,82609.0,0.11038467]
[1743722516921,0.242101,82610.0,82609.0,0.11038467]
[1743722517486,0.242099,82611.0,82609.0,0.11038467]
[1743722518677,0.242101,82610.0,82609.0,0.11038467]
[1743722520278,0.254206,82610.0,82609.0,0.11038467]
[1743722520794,0.254209,82609.0,82608.0,0.0009835]
[1743722522938,0.254221,82605.0,82604.0,0.00013844]
[1743722523332,0.81712397,82605.0,82604.0,0.00013844]
[1743722525529,0.86622397,82605.0,82604.0,0.00013844]
[1743722525766,0.88076482,82605.0,82604.0,0.00013844]
[1743722525931,1.0036625,82605.0,82604.0,0.00013844]
[1743722526144,1.0046625,82605.0,82604.0,0.00113844]
[1743722526498,1.0036625,82605.0,82604.0,0.00013844]
[1743722526923,1.0056625,82605.0,82604.0,0.00013844]
[1743722527238,1.0076625,82605.0,82604.0,0.00013844]
[1743722527553,1.0056625,82605.0,82604.0,0.00013844]
[1743722527745,1.0116625,82605.0,82604.0,0.00013844]
[1743722528358,0.88876482,82605.0,82604.0,0.00013844]
[1743722528650,0.96252397,82605.0,82604.0,0.00013844]
[1743722528994,0.95952397,82605.0,82604.0,0.00013844]
[1743722529328,0.96352397,82605.0,82604.0,0.00013844]
[1743722529696,0.95852397,82605.0,82604.0,0.00013844]
[1743722529898,0.82112397,82605.0,82604.0,0.00013844]
[1743722530122,0.96252397,82605.0,82604.0,0.00013844]
[1743722530412,1.0999625,82605.0,82604.0,0.00013844]
[1743722530610,1.1956625,82605.0,82604.0,4.4e-07]
[1743722533675,1.8956625,82605.0,82604.0,4.4e-07]
[1743722534697,2.3114625,82605.0,82604.0,4.4e-07]
[1743722538675,3.4018625,82605.0,82604.0,4.4e-07]
[1743722541471,0.59427,82589.0,82588.0,0.0009935]
[1743722541653,0.254311,82576.0,82575.0,0.048]
[1743722541824,0.254311,82576.0,82575.0,0.0480459]
[1743722542010,0.254311,82576.0,82575.0,0.06241979]
[1743722542206,0.242201,82576.0,82575.0,0.0480459]
[1743722542412,0.242194,82579.0,82576.0,0.242198]
[1743722542610,0.242195,82578.0,82575.0,0.06241979]
[1743722542807,0.254304,82578.0,82577.0,0.01452918]
[1743722543023,0.242201,82576.0,82575.0,0.0480459]
[1743722543469,0.242201,82576.0,82575.0,0.0490459]
[1743722543765,0.01491816,82576.0,82575.0,0.0490459]
[1743722543980,1.09048,82588.0,82587.0,0.012108]
[1743722544149,0.242149,82594.0,82591.0,0.254263]
[1743722544352,0.242149,82594.0,82592.0,0.242153]
[1743722544530,0.242149,82594.0,82591.0,0.012107]
[1743722544730,0.34,82594.0,82592.0,0.242154]
[1743722544931,0.582149,82594.0,82591.0,0.254258]
[1743722545402,0.582149,82594.0,82591.0,0.242151]
[1743722545609,0.01462886,82601.0,82600.0,0.254236]
[1743722545808,1.332585,82609.0,82607.0,0.242109]
[1743722545809,1.09048,82609.0,82607.0,0.242109]
[1743722545955,1.332584,82609.0,82606.0,0.242112]
[1743722546511,0.242109,82608.0,82606.0,0.242113]
[1743722546638,1.09048,82609.0,82608.0,0.288507]
[1743722546986,1.09048,82609.0,82608.0,0.39372366]
[1743722547189,1.09048,82609.0,82608.0,0.348912]
[1743722547394,0.254194,82614.0,82609.0,0.242104]
[1743722547610,0.242093,82613.0,82609.0,0.242104]
[1743722548011,0.242093,82613.0,82608.0,0.0947]
[1743722548012,0.002,82609.0,82608.0,0.0947]
[1743722548211,0.256209,82609.0,82608.0,0.0947]
[1743722548721,0.33455762,82609.0,82608.0,0.06259482]
[1743722550908,0.254215,82607.0,82606.0,0.0009996]
[1743722552180,0.254215,82607.0,82606.0,0.0019996]
[1743722552572,0.254215,82607.0,82606.0,0.0029996]
[1743722552733,0.36393326,82607.0,82606.0,0.0019996]
[1743722552937,0.36493326,82607.0,82606.0,0.0009996]
[1743722553273,0.256215,82607.0,82606.0,0.0009996]
[1743722554174,0.002,82607.0,82606.0,0.0151926]
[1743722554320,0.002,82607.0,82606.0,0.0009996]
[1743722554321,0.24411,82607.0,82606.0,0.0009996]
[1743722554515,0.24411,82607.0,82606.0,0.0151926]
[1743722554516,0.256215,82607.0,82606.0,0.0151926]
[1743722554721,0.256215,82607.0,82606.0,0.0009996]
[1743722554922,0.242121,82604.0,82601.0,0.242127]
[1743722555121,0.242119,82604.0,82602.0,0.01419995]
[1743722555363,0.242117,82605.0,82602.0,0.25632395]
[1743722555678,0.242113,82606.0,82603.0,0.24212]
[1743722555991,0.242113,82606.0,82604.0,0.0142244]
[1743722556762,0.012104,82612.0,82604.0,0.0142244]
[1743722556763,0.242093,82613.0,82609.0,0.242104]
[1743722557169,0.379498,82611.0,82610.0,0.0142091]
[1743722557559,0.242102,82610.0,82607.0,0.288207]
[1743722559554,0.379498,82611.0,82607.0,0.288207]
[1743722559555,0.242069,82621.0,82616.0,0.254187]
[1743722559754,0.24208,82618.0,82613.0,0.242089]
[1743722559961,0.24208,82618.0,82614.0,0.0009979]
[1743722560341,0.242086,82616.0,82614.0,0.0009979]
[1743722561096,0.242086,82615.0,82614.0,0.0009979]
[1743722561373,0.242086,82616.0,82614.0,0.0009979]
[1743722562453,0.242086,82615.0,82614.0,0.0009979]
[1743722564479,0.25419,82616.0,82614.0,0.0009979]
[1743722565857,0.242086,82615.0,82614.0,0.0009979]
[1743722568194,0.242086,82615.0,82614.0,0.01508857]
[1743722568395,0.242086,82615.0,82614.0,0.0009979]
[1743722568595,0.242086,82615.0,82614.0,0.01508857]
[1743722569233,0.242086,82616.0,82614.0,0.25717657]
[1743722569513,0.242086,82616.0,82614.0,0.01508857]
[1743722570299,0.242086,82615.0,82614.0,0.01508857]
[1743722570667,0.242086,82616.0,82614.0,0.01508857]
[1743722571653,0.242086,82615.0,82614.0,0.01508857]
[1743722574852,0.33309829,82615.0,82614.0,0.01508857]
[1743722575046,0.33309829,82615.0,82614.0,0.01409067]
[1743722575254,0.242104,82609.0,82608.0,0.0483]
[1743722575395,0.242102,82610.0,82608.0,0.0483]
[1743722575600,0.242104,82609.0,82608.0,0.0624011]
[1743722576562,0.242104,82609.0,82608.0,0.0644011]
[1743722576858,0.25419,82615.0,82611.0,0.242096]
[1743722577094,0.24254121,82617.0,82612.0,0.242093]
[1743722577302,0.00046021,82617.0,82616.0,0.254187]
[1743722577652,0.00046021,82617.0,82616.0,0.26829104]
[1743722578079,0.00046021,82617.0,82616.0,0.37137804]
[1743722578256,0.00046021,82617.0,82616.0,0.42057804]
[1743722578683,0.00046021,82617.0,82616.0,0.46917804]
[1743722578878,0.00046021,82617.0,82616.0,0.59208101]
[1743722579949,0.00046021,82617.0,82616.0,0.59307951]
[1743722580207,0.00046021,82617.0,82616.0,0.59507951]
[1743722580501,0.00046021,82617.0,82616.0,0.59607951]
[1743722580884,0.00046021,82617.0,82616.0,0.59807951]
[1743722581084,0.00046021,82617.0,82616.0,0.59607951]
[1743722581288,0.00046021,82617.0,82616.0,0.49299251]
[1743722581493,0.00046021,82617.0,82616.0,0.49499251]
[1743722582483,1.10418626,82645.0,82644.0,0.254101]
[1743722582690,1.09020912,82645.0,82644.0,0.26804203]
[1743722582904,8.912e-05,82645.0,82644.0,0.26804203]
[1743722584135,8.912e-05,82645.0,82644.0,0.27004203]
[1743722584721,0.00108912,82645.0,82644.0,0.27204203]
[1743722585118,0.00108912,82645.0,82644.0,0.27302463]
[1743722585461,8.912e-05,82645.0,82644.0,0.27302463]
[1743722585659,8.912e-05,82645.0,82644.0,0.27602463]
[1743722585858,8.912e-05,82645.0,82644.0,0.27202463]
[1743722586072,8.912e-05,82645.0,82644.0,0.26902463]
[1743722586270,8.912e-05,82645.0,82644.0,0.27202463]
[1743722586911,8.912e-05,82645.0,82644.0,0.27402463]
[1743722587281,0.24208712,82645.0,82644.0,0.01992363]
[1743722587481,0.25418612,82645.0,82644.0,0.01894103]
[1743722587686,0.25418612,82645.0,82644.0,0.005]
[1743722588248,0.25418612,82645.0,82644.0,0.002]
[1743722588479,0.25418612,82645.0,82644.0,0.003]
[1743722588998,0.25418612,82645.0,82644.0,0.01461128]
[1743722589169,0.25418612,82645.0,82644.0,0.001]
[1743722589353,0.25418612,82645.0,82644.0,0.002]
[1743722589520,0.25418612,82645.0,82644.0,0.01561128]
[1743722590224,8.912e-05,82645.0,82644.0,0.01561128]
[1743722591320,0.01218812,82645.0,82644.0,0.01561128]
[1743722591439,0.01218812,82645.0,82644.0,0.01461128]
[1743722591791,0.01218812,82645.0,82644.0,0.01561128]
[1743722592027,0.8937247,82645.0,82644.0,0.01461128]
[1743722592274,0.8937247,82645.0,82644.0,0.01561128]
[1743722592444,0.8937247,82645.0,82644.0,0.001]
[1743722592646,0.242037,82632.0,82628.0,0.254147]
[1743722592850,0.25414,82631.0,82627.0,0.242051]
[1743722593006,0.66604147,82640.0,82630.0,0.012102]
[1743722593347,0.242029,82635.0,82631.0,0.25568408]
[1743722593551,0.242025,82638.0,82631.0,0.26778208]
[1743722593927,0.242025,82638.0,82635.0,0.242026]
[1743722594131,0.242025,82638.0,82636.0,0.25566139]
[1743722594298,0.242025,82638.0,82636.0,0.01363639]
[1743722594498,0.13732,82640.0,82636.0,0.02573739]
[1743722594767,0.13732,82640.0,82639.0,0.242016]
[1743722594967,8.912e-05,82645.0,82644.0,0.242001]
[1743722595175,8.912e-05,82645.0,82644.0,0.25667234]
[1743722595419,8.912e-05,82645.0,82644.0,0.26877234]
[1743722596008,8.912e-05,82645.0,82644.0,0.25667234]
[1743722596206,8.912e-05,82645.0,82644.0,0.01467134]
[1743722596413,0.00108912,82645.0,82644.0,0.25667234]
[1743722597314,0.00108912,82645.0,82644.0,0.26877234]
[1743722597811,0.00208912,82645.0,82644.0,0.26877234]
[1743722599013,0.00208912,82645.0,82644.0,0.25667234]
[1743722599372,0.00208912,82645.0,82644.0,0.26877234]
[1743722600798,4e-05,82652.0,82649.0,0.241987]
[1743722601027,8.605e-05,82652.0,82651.0,0.25408]
[1743722601268,8.605e-05,82652.0,82651.0,0.30208]
[1743722601425,8.605e-05,82652.0,82651.0,0.31569018]
[1743722602214,0.00108605,82652.0,82651.0,0.31569018]
[1743722603573,8.605e-05,82652.0,82651.0,0.48399315]
[1743722603729,8.605e-05,82652.0,82651.0,0.48599315]
[1743722603932,0.8023801,82664.0,82663.0,0.241946]
[1743722604203,0.8023801,82664.0,82662.0,0.241948]
[1743722604204,0.241946,82663.0,82662.0,0.0009871]
[1743722604752,0.254043,82663.0,82662.0,0.0009871]
[1743722605156,0.49984365,82663.0,82662.0,0.0009871]
[1743722605474,0.254083,82650.0,82649.0,0.0049327]
[1743722605670,0.012098,82654.0,82646.0,0.012099]
[1743722605671,0.254073,82654.0,82646.0,0.012099]
[1743722605856,0.241976,82653.0,82648.0,0.24199]
[1743722606195,0.24198,82652.0,82648.0,0.24199]
[1743722606391,0.254085,82651.0,82646.0,0.241995]
[1743722606621,0.254085,82651.0,82647.0,0.241992]
[1743722606622,0.012099,82651.0,82647.0,0.241992]
[1743722606755,0.012099,82650.0,82644.0,0.254099]
[1743722606952,0.241993,82647.0,82644.0,0.241999]
[1743722607441,0.254084,82650.0,82648.0,0.001]
[1743722607642,0.012099,82650.0,82648.0,0.001]
[1743722607844,0.241987,82649.0,82648.0,0.001]
[1743722608065,0.24199,82648.0,82644.0,0.0121]
[1743722608206,0.24199,82648.0,82644.0,0.0141]
[1743722608401,0.254097,82645.0,82644.0,0.002]
[1743722608666,0.012099,82648.0,82644.0,0.002]
[1743722608667,0.241995,82647.0,82644.0,0.244]
[1743722609232,0.24199,82648.0,82645.0,0.241998]
[1743722609952,0.24199,82648.0,82646.0,0.001]
[1743722610284,0.24199,82648.0,82645.0,0.241998]
[1743722610500,0.24199,82648.0,82645.0,0.243998]
[1743722610618,0.34,82653.0,82646.0,0.241995]
[1743722610969,0.34,82654.0,82651.0,0.012099]
[1743722611214,0.581973,82654.0,82649.0,0.254086]
[1743722611389,0.352097,82663.0,82658.0,0.241958]
[1743722611600,0.34,82660.0,82659.0,0.0049958]
[1743722611802,0.34,82660.0,82656.0,0.012098]
[1743722611983,0.34,82660.0,82657.0,0.241963]
[1743722612192,0.34,82660.0,82658.0,0.241958]
[1743722612392,0.34,82660.0,82659.0,0.241957]
[1743722612691,0.34,82661.0,82659.0,0.01345392]
[1743722612898,0.34,82661.0,82659.0,0.01445392]
[1743722613455,0.581953,82661.0,82659.0,0.01445392]
[1743722613673,0.581953,82661.0,82659.0,0.01345392]
[1743722614014,0.581953,82661.0,82657.0,0.241958]
[1743722614226,0.581953,82661.0,82657.0,0.2429425]
[1743722614377,0.581953,82661.0,82658.0,0.01345565]
[1743722614835,0.241955,82660.0,82658.0,0.01345565]
[1743722615036,0.594054,82659.0,82658.0,0.01345565]
[1743722615576,0.594058,82658.0,82657.0,0.0009845]
[1743722616080,0.594058,82658.0,82657.0,0.0019845]
[1743722616546,0.594058,82658.0,82657.0,0.0009845]
[1743722616742,0.581955,82660.0,82657.0,0.0019845]
[1743722616948,0.352097,82662.0,82657.0,0.2439475]
[1743722617175,0.241955,82660.0,82657.0,0.2439475]
[1743722617365,0.012097,82662.0,82658.0,0.0134491]
[1743722617570,0.581957,82659.0,82658.0,0.0134491]
[1743722618283,0.34,82659.0,82658.0,0.0134491]
[1743722619881,0.581957,82659.0,82658.0,0.0134491]
[1743722620458,0.34,82659.0,82658.0,0.0134491]
[1743722620912,0.581957,82659.0,82658.0,0.0134491]
[1743722621119,0.34,82659.0,82658.0,0.2554091]
[1743722622028,4.606e-05,82664.0,82658.0,0.2675071]
[1743722622204,4.606e-05,82664.0,82663.0,0.254043]
[1743722622344,4.606e-05,82664.0,82661.0,0.0499]